fUST/lending_fUST_20250204
["ID","MTS","AMOUNT","RATE_DAILY","PERIOD"]
[351589795,1738651846279,-1163.46,0.00017397,2]
[351589797,1738651846289,-23370.66,0.00017397,2]
[351589801,1738651846300,-1603.39,0.00017397,2]
[351589803,1738651846310,-500.0,0.00017397,2]
[351589805,1738651846320,-1346.33,0.00017397,2]
[351589807,1738651846329,-500.0,0.00017397,2]
[351589809,1738651846339,-500.0,0.00017397,2]
[351589811,1738651846349,-7506.04,0.00017397,2]
[351589813,1738651846358,-798.26,0.00017397,2]
[351589815,1738651846368,-2370.99,0.00017397,2]
[351589817,1738651846377,-2913.7,0.00017397,2]
[351589819,1738651846387,-1726.05,0.00017397,2]
[351589821,1738651846396,-1580.38,0.00017397,2]
[351589823,1738651846406,-2967.46,0.00017397,2]
[351589825,1738651846415,-599.86,0.00017397,2]
[351589827,1738651846425,-500.0,0.00017397,2]
[351589829,1738651846434,-500.0,0.00017397,2]
[351589831,1738651846443,-1636.2,0.00017397,2]
[351589833,1738651846453,-1249.68,0.00017397,2]
[351589835,1738651846463,-500.0,0.00017397,2]
[351589837,1738651846472,-1498.93,0.00017397,2]
[351589839,1738651846481,-1182.05,0.00017397,2]
[351589840,1738651846491,-567.64546831,0.00017397,2]
[351589842,1738651846503,-528.02,0.00017397,2]
[351589845,1738651846513,-500.0,0.00017397,2]
[351589856,1738651846523,-1801.86140392,0.000174,2]
[351589859,1738651846629,-429.13377212,0.0001742,2]
[351589861,1738651846638,-771.87967296,0.00017454,2]
[351589863,1738651846647,-160.0,0.00017487,7]
[351589865,1738651846656,-169.5476324,0.00017487,5]
[351589867,1738651846665,-2000.0,0.000175,2]
[351589869,1738651846674,-2000.0,0.000175,2]
[351589871,1738651846683,-2000.0,0.000175,2]
[351589872,1738651846692,-151.0,0.000175,2]
[351589874,1738651846701,-152.561072,0.000175,2]
[351589876,1738651846710,-226.813716,0.000175,2]
[351589878,1738651846719,-151.0,0.000175,2]
[351589880,1738651846729,-151.0,0.000175,2]
[351589882,1738651846737,-1801.86140392,0.000175,2]
[351589884,1738651846747,-333210.07163593,0.000175,2]
[351589886,1738651846756,-500.0,0.00017534,2]
[351589888,1738651846765,-547.92,0.00017534,2]
[351589890,1738651846774,-558.98,0.00017534,2]
[351589892,1738651846783,-500.0,0.00017534,2]
[351589894,1738651846793,-500.0,0.00017534,2]
[351589896,1738651846802,-1137.71,0.00017534,2]
[351589899,1738651846811,-1070.58,0.00017534,2]
[351589900,1738651846820,-500.0,0.00017534,2]
[351589902,1738651846829,-877.52,0.00017534,2]
[351589904,1738651846839,-500.0,0.00017534,2]
[351589906,1738651846848,-500.0,0.00017534,2]
[351589909,1738651846857,-573.58,0.00017534,2]
[351589910,1738651846866,-2613.03,0.00017534,2]
[351589913,1738651846877,-1669.29,0.00017534,2]
[351589914,1738651846886,-500.0,0.00017534,2]
[351589917,1738651846896,-1281.48,0.00017534,2]
[351589919,1738651846906,-975.88,0.00017534,2]
[351589921,1738651846915,-500.0,0.00017534,2]
[351589923,1738651846924,-500.0,0.00017534,2]
[351589924,1738651846933,-1619.08,0.00017534,2]
[351589927,1738651846943,-2528.3,0.00017534,2]
[351589928,1738651846953,-500.0,0.00017534,2]
[351589930,1738651846962,-5209.08,0.00017534,2]
[351589932,1738651846972,-1044.85,0.00017534,2]
[351589934,1738651846981,-500.0,0.00017534,2]
[351589937,1738651846991,-1261.36,0.00017534,2]
[351589939,1738651847006,-2551.57,0.00017534,2]
[351589941,1738651847015,-8194.32,0.00017534,2]
[351589942,1738651847026,-3818.88,0.00017534,2]
[351589944,1738651847036,-526.4,0.00017534,2]
[351589946,1738651847045,-1537.3,0.00017534,2]
[351589949,1738651847056,-1271.55,0.00017534,2]
[351589951,1738651847066,-646.51,0.00017534,2]
[351589953,1738651847075,-9137.08,0.00017534,2]
[351589955,1738651847085,-596.01,0.00017534,2]
[351589956,1738651847095,-4111.97,0.00017534,2]
[351589959,1738651847108,-1000.45,0.00017534,2]
[351589960,1738651847118,-500.0,0.00017534,2]
[351589962,1738651847128,-839.24,0.00017534,2]
[351589965,1738651847138,-931.7,0.00017534,2]
[351589966,1738651847148,-1163.46,0.00017534,2]
[351589968,1738651847157,-23370.66,0.00017534,2]
[351589970,1738651847167,-1603.39,0.00017534,2]
[351589972,1738651847177,-500.0,0.00017534,2]
[351589974,1738651847187,-1346.33,0.00017534,2]
[351589976,1738651847196,-500.0,0.00017534,2]
[351589977,1738651847205,-7506.04,0.00017534,2]
[351589978,1738651847214,-500.0,0.00017534,2]
[351589979,1738651847223,-798.26,0.00017534,2]
[351589980,1738651847232,-2370.99,0.00017534,2]
[351589981,1738651847241,-2913.7,0.00017534,2]
[351589982,1738651847255,-1726.05,0.00017534,2]
[351589983,1738651847264,-1580.38,0.00017534,2]
[351589984,1738651847273,-2967.46,0.00017534,2]
[351589985,1738651847282,-599.86,0.00017534,2]
[351589986,1738651847291,-500.0,0.00017534,2]
[351589987,1738651847300,-500.0,0.00017534,2]
[351589989,1738651847310,-1636.2,0.00017534,2]
[351589991,1738651847319,-1249.68,0.00017534,2]
[351589993,1738651847328,-500.0,0.00017534,2]
[351589995,1738651847337,-1498.93,0.00017534,2]
[351589997,1738651847346,-1182.05,0.00017534,2]
[351589999,1738651847355,-528.02,0.00017534,2]
[351590001,1738651847364,-500.0,0.00017534,2]
[351590003,1738651847374,-500.20614653,0.00017543,2]
[351590005,1738651847383,-500.0,0.00017573,2]
[351590007,1738651847392,-500.0,0.00017573,2]
[351590009,1738651847401,-500.0,0.00017573,2]
[351590011,1738651847410,-500.0,0.00017573,2]
[351590013,1738651847419,-500.0,0.00017573,2]
[351590015,1738651847429,-500.0,0.00017573,2]
[351590017,1738651847438,-500.0,0.00017573,2]
[351590019,1738651847447,-1018.81811015,0.00017596,2]
[351590021,1738651847457,-2040.68508313,0.000176,2]
[351590023,1738651847466,-1801.86140392,0.000176,2]
[351590025,1738651847475,-805.74029623,0.00017621,2]
[351590027,1738651847484,-506.12498987,0.00017621,2]
[351590029,1738651847493,-1000.0,0.00017621,2]
[351590031,1738651847504,-1007.99791894,0.00017621,2]
[351590033,1738651847513,-1000.0,0.00017621,2]
[351590035,1738651847522,-151.44626994,0.00017671,2]
[351590037,1738651847531,-500.0,0.00017671,2]
[351590039,1738651847540,-500.0,0.00017671,2]
[351590041,1738651847549,-217.806271,0.00017671,2]
[351590043,1738651847558,-500.0,0.00017671,2]
[351590045,1738651847568,-200.65989147,0.00017671,2]
[351590047,1738651847577,-152.13959995,0.00017671,2]
[351590049,1738651847586,-215.81006361,0.00017671,2]
[351590051,1738651847596,-572.0,0.00017671,2]
[351590053,1738651847605,-500.0,0.00017671,2]
[351590055,1738651847614,-500.0,0.00017671,2]
[351590057,1738651847623,-547.92,0.00017671,2]
[351590059,1738651847632,-558.98,0.00017671,2]
[351590061,1738651847641,-500.0,0.00017671,2]
[351590063,1738651847650,-500.0,0.00017671,2]
[351590065,1738651847659,-1137.71,0.00017671,2]
[351590067,1738651847668,-1070.58,0.00017671,2]
[351590069,1738651847677,-500.0,0.00017671,2]
[351590071,1738651847687,-877.52,0.00017671,2]
[351590073,1738651847696,-500.0,0.00017671,2]
[351590074,1738651847705,-500.0,0.00017671,2]
[351590076,1738651847714,-573.58,0.00017671,2]
[351590078,1738651847724,-2613.03,0.00017671,2]
[351590080,1738651847733,-1669.29,0.00017671,2]
[351590082,1738651847742,-500.0,0.00017671,2]
[351590084,1738651847752,-1281.48,0.00017671,2]
[351590086,1738651847762,-975.88,0.00017671,2]
[351590088,1738651847770,-500.0,0.00017671,2]
[351590090,1738651847779,-500.0,0.00017671,2]
[351590092,1738651847789,-1619.08,0.00017671,2]
[351590094,1738651847798,-2528.3,0.00017671,2]
[351590096,1738651847808,-500.0,0.00017671,2]
[351590098,1738651847817,-5209.08,0.00017671,2]
[351590100,1738651847826,-1044.85,0.00017671,2]
[351590102,1738651847836,-394.58374769,0.00017671,2]
[351590104,1738651847845,-1261.36,0.00017671,2]
[351590106,1738651847854,-2551.57,0.00017671,2]
[351590108,1738651847863,-8194.32,0.00017671,2]
[351590110,1738651847872,-3818.88,0.00017671,2]
[351590112,1738651847881,-526.4,0.00017671,2]
[351590114,1738651847891,-1537.3,0.00017671,2]
[351590116,1738651847901,-1271.55,0.00017671,2]
[351590118,1738651847911,-646.51,0.00017671,2]
[351590120,1738651847921,-9137.08,0.00017671,2]
[351590122,1738651847931,-596.01,0.00017671,2]
[351590124,1738651847940,-4111.97,0.00017671,2]
[351590126,1738651847950,-1000.45,0.00017671,2]
[351590128,1738651847959,-500.0,0.00017671,2]
[351590130,1738651847968,-839.24,0.00017671,2]
[351590132,1738651847977,-931.7,0.00017671,2]
[351590134,1738651847986,-1163.46,0.00017671,2]
[351590136,1738651847996,-23370.66,0.00017671,2]
[351590138,1738651848005,-1603.39,0.00017671,2]
[351590140,1738651848014,-373.4396244,0.00017671,2]
[351590142,1738651848024,-1346.33,0.00017671,2]
[351590144,1738651848033,-500.0,0.00017671,2]
[351590146,1738651848043,-7506.04,0.00017671,2]
[351590148,1738651848052,-500.0,0.00017671,2]
[351590150,1738651848061,-798.26,0.00017671,2]
[351590151,1738651848070,-2370.99,0.00017671,2]
[351590153,1738651848079,-2913.7,0.00017671,2]
[351590155,1738651848089,-1726.05,0.00017671,2]
[351590157,1738651848101,-1580.38,0.00017671,2]
[351590159,1738651848111,-2967.46,0.00017671,2]
[351590162,1738651848120,-599.86,0.00017671,2]
[351590164,1738651848133,-500.0,0.00017671,2]
[351590165,1738651848152,-620.18760397,0.00017671,2]
[351590167,1738651848162,-1636.2,0.00017671,2]
[351590169,1738651848171,-1249.68,0.00017671,2]
[351590171,1738651848182,-1498.93,0.00017671,2]
[351590173,1738651848192,-500.0,0.00017671,2]
[351590175,1738651848202,-1182.05,0.00017671,2]
[351590177,1738651848212,-528.02,0.00017671,2]
[351590179,1738651848222,-500.0,0.00017671,2]
[351590181,1738651848232,-771.87967296,0.00017677,2]
[351590183,1738651848242,-29061.88868224,0.000177,2]
[351590185,1738651848254,-1801.86140392,0.000177,2]
[351590187,1738651848264,-4508.39561374,0.00017799,2]
[351590189,1738651848274,-1801.86140392,0.000178,2]
[351590191,1738651848284,-499.0,0.00017807,4]
[351590193,1738651848293,-500.0,0.00017808,2]
[351590195,1738651848303,-547.92,0.00017808,2]
[351590197,1738651848313,-558.98,0.00017808,2]
[351590199,1738651848322,-500.0,0.00017808,2]
[351590201,1738651848332,-500.0,0.00017808,2]
[351590203,1738651848346,-1137.71,0.00017808,2]
[351590205,1738651848355,-1070.58,0.00017808,2]
[351590207,1738651848364,-514.87344771,0.00017808,2]
[351590209,1738651848373,-877.52,0.00017808,2]
[351590211,1738651848382,-598.06948948,0.00017808,2]
[351590213,1738651848392,-500.0,0.00017808,2]
[351590215,1738651848401,-573.58,0.00017808,2]
[351590217,1738651848410,-2613.03,0.00017808,2]
[351590219,1738651848420,-1669.29,0.00017808,2]
[351590221,1738651848429,-500.0,0.00017808,2]
[351590223,1738651848439,-1281.48,0.00017808,2]
[351590225,1738651848448,-975.88,0.00017808,2]
[351590227,1738651848457,-500.0,0.00017808,2]
[351590229,1738651848467,-500.0,0.00017808,2]
[351590231,1738651848476,-1619.08,0.00017808,2]
[351590233,1738651848486,-2528.3,0.00017808,2]
[351590235,1738651848497,-512.56117006,0.00017808,2]
[351590237,1738651848508,-5209.08,0.00017808,2]
[351590239,1738651848517,-1044.85,0.00017808,2]
[351590240,1738651848527,-1261.36,0.00017808,2]
[351590242,1738651848536,-2551.57,0.00017808,2]
[351590244,1738651848545,-8194.32,0.00017808,2]
[351590246,1738651848555,-3818.88,0.00017808,2]
[351590248,1738651848564,-526.4,0.00017808,2]
[351590250,1738651848574,-1537.3,0.00017808,2]
[351590252,1738651848584,-1271.55,0.00017808,2]
[351590254,1738651848593,-646.51,0.00017808,2]
[351590256,1738651848603,-9137.08,0.00017808,2]
[351590258,1738651848613,-596.01,0.00017808,2]
[351590260,1738651848622,-4111.97,0.00017808,2]
[351590262,1738651848631,-1000.45,0.00017808,2]
[351590264,1738651848641,-500.0,0.00017808,2]
[351590267,1738651848651,-839.24,0.00017808,2]
[351590268,1738651848660,-931.7,0.00017808,2]
[351590270,1738651848669,-1163.46,0.00017808,2]
[351590272,1738651848679,-23370.66,0.00017808,2]
[351590274,1738651848688,-1603.39,0.00017808,2]
[351590276,1738651848697,-1346.33,0.00017808,2]
[351590278,1738651848707,-500.0,0.00017808,2]
[351590280,1738651848716,-7506.04,0.00017808,2]
[351590282,1738651848724,-500.0,0.00017808,2]
[351590284,1738651848733,-798.26,0.00017808,2]
[351590286,1738651848743,-2370.99,0.00017808,2]
[351590288,1738651848753,-2913.7,0.00017808,2]
[351590290,1738651848763,-1726.05,0.00017808,2]
[351590292,1738651848772,-1580.38,0.00017808,2]
[351590294,1738651848782,-2967.46,0.00017808,2]
[351590296,1738651848791,-599.86,0.00017808,2]
[351590298,1738651848800,-500.0,0.00017808,2]
[351590300,1738651848810,-1636.2,0.00017808,2]
[351590302,1738651848819,-1249.68,0.00017808,2]
[351590304,1738651848829,-1498.93,0.00017808,2]
[351590306,1738651848838,-500.0,0.00017808,2]
[351590308,1738651848847,-1182.05,0.00017808,2]
[351590310,1738651848857,-528.02,0.00017808,2]
[351590312,1738651848866,-500.0,0.00017808,2]
[351590314,1738651848875,-22599.45790263,0.00017819,2]
[351590316,1738651848885,-507.98663694,0.00017821,2]
[351590318,1738651848894,-982.69189317,0.00017821,2]
[351590320,1738651848904,-1028.00813458,0.00017898,7]
[351590332,1738651849006,-40299.18369755,0.000179,5]
[351590334,1738651849016,-320.0,0.000179,2]
[351590336,1738651849026,-771.87967296,0.000179,2]
[351590338,1738651849035,-1801.86140392,0.000179,2]
[351590340,1738651849045,-500.0,0.00017945,2]
[351590342,1738651849054,-500.0,0.00017945,2]
[351590344,1738651849063,-256.64878245,0.00017945,2]
[351590346,1738651849073,-500.0,0.00017945,2]
[351590348,1738651849083,-295.84432147,0.00017945,2]
[351590350,1738651849093,-278.46035054,0.00017945,2]
[351590352,1738651849106,-572.0,0.00017945,2]
[351590354,1738651849116,-591.04267988,0.00017945,2]
[351590356,1738651849125,-500.0,0.00017945,2]
[351590358,1738651849135,-547.92,0.00017945,2]
[351590360,1738651849144,-558.98,0.00017945,2]
[351590362,1738651849153,-500.0,0.00017945,2]
[351590364,1738651849162,-500.0,0.00017945,2]
[351590366,1738651849173,-1137.71,0.00017945,2]
[351590368,1738651849182,-1070.58,0.00017945,2]
[351590370,1738651849191,-877.52,0.00017945,2]
[351590372,1738651849201,-500.0,0.00017945,2]
[351590373,1738651849210,-573.58,0.00017945,2]
[351590375,1738651849219,-2613.03,0.00017945,2]
[351590377,1738651849229,-1669.29,0.00017945,2]
[351590379,1738651849238,-500.0,0.00017945,2]
[351590381,1738651849249,-1281.48,0.00017945,2]
[351590383,1738651849259,-975.88,0.00017945,2]
[351590385,1738651849269,-578.85561403,0.00017945,2]
[351590387,1738651849279,-500.0,0.00017945,2]
[351590390,1738651849289,-1619.08,0.00017945,2]
[351590391,1738651849298,-2528.3,0.00017945,2]
[351590393,1738651849308,-5209.08,0.00017945,2]
[351590395,1738651849317,-1044.85,0.00017945,2]
[351590397,1738651849327,-1261.36,0.00017945,2]
[351590399,1738651849336,-2551.57,0.00017945,2]
[351590401,1738651849346,-8194.32,0.00017945,2]
[351590404,1738651849355,-3818.88,0.00017945,2]
[351590406,1738651849365,-526.4,0.00017945,2]
[351590408,1738651849374,-1537.3,0.00017945,2]
[351590410,1738651849384,-1271.55,0.00017945,2]
[351590412,1738651849395,-646.51,0.00017945,2]
[351590413,1738651849406,-9137.08,0.00017945,2]
[351590414,1738651849416,-596.01,0.00017945,2]
[351590415,1738651849426,-4111.97,0.00017945,2]
[351590416,1738651849436,-1000.45,0.00017945,2]
[351590417,1738651849445,-500.0,0.00017945,2]
[351590418,1738651849455,-839.24,0.00017945,2]
[351590419,1738651849464,-931.7,0.00017945,2]
[351590420,1738651849474,-1163.46,0.00017945,2]
[351590421,1738651849483,-23370.66,0.00017945,2]
[351590422,1738651849493,-1603.39,0.00017945,2]
[351590423,1738651849505,-1346.33,0.00017945,2]
[351590424,1738651849515,-500.0,0.00017945,2]
[351590425,1738651849524,-500.0,0.00017945,2]
[351590426,1738651849534,-7506.04,0.00017945,2]
[351590427,1738651849544,-798.26,0.00017945,2]
[351590428,1738651849554,-2370.99,0.00017945,2]
[351590430,1738651849563,-2913.7,0.00017945,2]
[351590432,1738651849573,-1726.05,0.00017945,2]
[351590434,1738651849582,-1580.38,0.00017945,2]
[351590436,1738651849591,-2967.46,0.00017945,2]
[351590438,1738651849601,-599.86,0.00017945,2]
[351590440,1738651849611,-500.0,0.00017945,2]
[351590442,1738651849621,-1636.2,0.00017945,2]
[351590444,1738651849631,-1249.68,0.00017945,2]
[351590446,1738651849640,-1498.93,0.00017945,2]
[351590448,1738651849650,-500.0,0.00017945,2]
[351590450,1738651849659,-1182.05,0.00017945,2]
[351590452,1738651849669,-528.02,0.00017945,2]
[351590454,1738651849678,-500.0,0.00017945,2]
[351590456,1738651849688,-330.70747813,0.00017973,2]
[351590458,1738651849698,-500.0,0.00017973,2]
[351590460,1738651849708,-548.63176795,0.0001799,2]
[351590462,1738651849719,-9047.01526853,0.00018,2]
[351590464,1738651849728,-2234605.54970222,0.00018,15]
[351590467,1738651849748,-91993.22412071,0.00018,15]
[351590483,1738651849902,674.34,0.00010959,2]
[351591124,1738651857312,326.92,0.00010959,2]
[351595424,1738651904297,5000.0,0.00016,10]
[351597805,1738651970426,299.51,0.00010959,2]
[351597806,1738651973583,7159.19597625,0.0002045,120]
[351597812,1738651980926,249.59,0.00010959,2]
[351597813,1738651991864,207.99,0.00010959,2]
[351597814,1738652002383,173.33,0.00010959,2]
[351597815,1738652012874,866.65,0.00010959,2]
[351597816,1738652090960,220.092672,0.00013973,2]
[351597817,1738652109156,500.0,0.00020453,120]
[351597818,1738652135712,521.0,0.00020453,120]
[351597819,1738652428701,3616.58027764,0.0002,120]
[351597825,1738652537485,1700.0,0.00012054,2]
[351597826,1738652539082,1700.0,0.00013424,2]
[351597827,1738652540719,1700.0,0.00014794,2]
[351597829,1738652751809,812.4,0.00010959,2]
[351597845,1738652844598,247.4,0.00010959,2]
[351597846,1738652855084,206.17,0.00010959,2]
[351597847,1738652865577,549.78,0.00010959,2]
[351597848,1738652876251,601.32,0.00010959,2]
[351597849,1738652886591,501.1,0.00010959,2]
[351597850,1738652897072,636.32,0.00010959,2]
[351597851,1738652907543,636.32,0.00010959,2]
[351597853,1738652928257,176.03,0.00010959,2]
[351597854,1738652938738,230.95,0.00010959,2]
[351597856,1738652949226,262.68,0.00010959,2]
[351597857,1738652959713,218.9,0.00010959,2]
[351597858,1738652970420,316.7,0.00010959,2]
[351597859,1738652980924,316.89,0.00010959,2]
[351597860,1738652991424,264.07,0.00010959,2]
[351597864,1738653002148,287.32,0.00010959,2]
[351597865,1738653012901,342.2,0.00010959,2]
[351597866,1738653023382,285.17,0.00010959,2]
[351597893,1738653032021,-300.0,0.00015999,2]
[351597894,1738653032031,-77874.018484,0.00016,2]
[351597897,1738653032089,-300.0,0.00016,2]
[351597898,1738653032100,-568.53774577,0.00016,2]
[351597899,1738653032278,-98653.27426725,0.00016,2]
[351597900,1738653032291,-28042.53291006,0.00016,2]
[351597901,1738653032302,-979.66436324,0.00016,2]
[351597903,1738653032313,-1361.24201571,0.00016,2]
[351597905,1738653033869,309.0,0.00010959,2]
[351597906,1738653037909,-51162.48232043,0.00016,2]
[351597907,1738653037918,-214.25987775,0.00016064,2]
[351597908,1738653037927,-1700.0,0.00016164,2]
[351597909,1738653037936,-214.25987774,0.00016326,2]
[351597910,1738653037945,-3000.0,0.000164,2]
[351597911,1738653037955,-5557.519808,0.0001641,2]
[351597912,1738653037964,-272.04226361,0.00016437,2]
[351597913,1738653037973,-4062.01582624,0.00016438,2]
[351597914,1738653037982,-500.0,0.00016438,2]
[351597915,1738653037992,-500.0,0.00016438,2]
[351597916,1738653038002,-500.0,0.00016438,2]
[351597917,1738653038012,-500.0,0.00016438,2]
[351597918,1738653038022,-500.0,0.00016438,2]
[351597919,1738653038036,-711.07,0.00016438,2]
[351597920,1738653038055,-688.91,0.00016438,2]
[351597921,1738653038074,-500.0,0.00016438,2]
[351597922,1738653038084,-232.57135564,0.00016438,2]
[351597923,1738653038093,-500.0,0.00016438,2]
[351597924,1738653038102,-500.0,0.00016438,2]
[351597925,1738653038111,-314.86823239,0.00016438,2]
[351597926,1738653038120,-500.0,0.00016438,2]
[351597927,1738653038130,-1742.02,0.00016438,2]
[351597928,1738653038139,-500.0,0.00016438,2]
[351597929,1738653038148,-585.01,0.00016438,2]
[351597930,1738653038157,-500.0,0.00016438,2]
[351597931,1738653038166,-449.46550889,0.00016438,2]
[351597932,1738653038175,-500.0,0.00016438,2]
[351597933,1738653038184,-500.0,0.00016438,2]
[351597934,1738653038194,-500.0,0.00016438,2]
[351597935,1738653038204,-650.59,0.00016438,2]
[351597936,1738653038213,-500.0,0.00016438,2]
[351597937,1738653038222,-500.0,0.00016438,2]
[351597938,1738653038231,-500.0,0.00016438,2]
[351597939,1738653038241,-253.4578404,0.00016438,2]
[351597940,1738653038250,-3472.72,0.00016438,2]
[351597941,1738653038260,-500.0,0.00016438,2]
[351597942,1738653038269,-500.0,0.00016438,2]
[351597943,1738653038278,-600.5844107,0.00016438,2]
[351597944,1738653038287,-500.0,0.00016438,2]
[351597945,1738653038296,-2545.92,0.00016438,2]
[351597946,1738653038305,-1100.22,0.00016438,2]
[351597947,1738653038316,-500.0,0.00016438,2]
[351597948,1738653038325,-500.0,0.00016438,2]
[351597949,1738653038335,-500.0,0.00016438,2]
[351597950,1738653038344,-500.0,0.00016438,2]
[351597951,1738653038353,-500.0,0.00016438,2]
[351597952,1738653038362,-696.57,0.00016438,2]
[351597953,1738653038372,-500.0,0.00016438,2]
[351597954,1738653038381,-482.30563152,0.00016438,2]
[351597956,1738653038390,-840.9,0.00016438,2]
[351597958,1738653038399,-1701.05,0.00016438,2]
[351597960,1738653038408,-666.96,0.00016438,2]
[351597961,1738653038417,-500.0,0.00016438,2]
[351597963,1738653038427,-500.0,0.00016438,2]
[351597965,1738653038436,-6091.39,0.00016438,2]
[351597967,1738653038445,-2741.31,0.00016438,2]
[351597968,1738653038454,-1024.87,0.00016438,2]
[351597969,1738653038464,-847.7,0.00016438,2]
[351597970,1738653038473,-16099.78,0.00016438,2]
[351597971,1738653038482,-500.0,0.00016438,2]
[351597973,1738653038491,-500.0,0.00016438,2]
[351597974,1738653038501,-559.49,0.00016438,2]
[351597975,1738653038513,-500.0,0.00016438,2]
[351597976,1738653038522,-953.65,0.00016438,2]
[351597977,1738653038531,-621.14,0.00016438,2]
[351597978,1738653038540,-525.4226084,0.00016438,2]
[351597979,1738653038558,-500.0,0.00016438,2]
[351597980,1738653038569,-500.0,0.00016438,2]
[351597981,1738653038579,-565.43,0.00016438,2]
[351597982,1738653038588,-500.0,0.00016438,2]
[351597983,1738653038599,-775.64,0.00016438,2]
[351597984,1738653038609,-500.0,0.00016438,2]
[351597985,1738653038619,-500.0,0.00016438,2]
[351597986,1738653038800,-500.0,0.00016438,2]
[351597987,1738653038811,-1135.73,0.00016438,2]
[351597988,1738653038821,-500.0,0.00016438,2]
[351597989,1738653038830,-473.40930979,0.00016438,2]
[351597990,1738653038840,-500.0,0.00016438,2]
[351597991,1738653038850,-500.0,0.00016438,2]
[351597992,1738653038860,-483.6855893,0.00016438,2]
[351597993,1738653038870,-1679.45,0.00016438,2]
[351597994,1738653038879,-500.0,0.00016438,2]
[351597995,1738653038888,-319.07390484,0.00016438,2]
[351597996,1738653038899,-500.0,0.00016438,2]
[351597997,1738653038908,-2063.87,0.00016438,2]
[351597998,1738653038918,-1090.8,0.00016438,2]
[351597999,1738653038928,-500.0,0.00016438,2]
[351598000,1738653038938,-506.77975931,0.00016438,2]
[351598001,1738653038948,-230.9034042,0.00016438,2]
[351598002,1738653038958,-1175.84,0.00016438,2]
[351598003,1738653038968,-500.0,0.00016438,2]
[351598004,1738653038978,-5316.78,0.00016438,2]
[351598005,1738653038987,-1053.58,0.00016438,2]
[351598006,1738653038997,-500.0,0.00016438,2]
[351598007,1738653039006,-788.04,0.00016438,2]
[351598008,1738653039015,-500.0,0.00016438,2]
[351598009,1738653039026,-500.0,0.00016438,2]
[351598010,1738653039036,-500.0,0.00016438,2]
[351598011,1738653039046,-999.29,0.00016438,2]
[351598012,1738653039056,-500.0,0.00016438,2]
[351598013,1738653039066,-500.0,0.00016438,2]
[351598014,1738653039077,-833.12,0.00016438,2]
[351598015,1738653039087,-500.0,0.00016438,2]
[351598016,1738653039097,-500.0,0.00016438,2]
[351598017,1738653039107,-500.0,0.00016438,2]
[351598018,1738653039117,-500.0,0.00016438,2]
[351598019,1738653039127,-500.0,0.00016438,2]
[351598020,1738653039137,-500.0,0.00016438,2]
[351598021,1738653039147,-1978.31,0.00016438,2]
[351598022,1738653039157,-1141.9,0.00016438,2]
[351598023,1738653039167,-500.0,0.00016438,2]
[351598024,1738653039176,-500.0,0.00016438,2]
[351598025,1738653039186,-868.99,0.00016438,2]
[351598026,1738653039196,-5462.88,0.00016438,2]
[351598027,1738653039207,-500.0,0.00016438,2]
[351598028,1738653039216,-500.0,0.00016438,2]